Cogmind - Beta 17 *** ADVENTURER MODE // 2026.08.10 @ 23:26:08 Player: Banditoz Result: Destroyed by S-27 Virus with Autogun Performance ------------- Evolutions (4) 2000 Regions Visited (7) 1400 Robots Destroyed (95) 475 Value Destroyed (2974) 2974 Prototype IDs (3) 60 Alien Tech Used (0) 0 Bonus (58) 58 TOTAL SCORE: 6967 Bonus ------- Follower Combat Kills 58 Cogmind --------- Core Integrity 0/850 Matter 1/400 Energy 100/100 System Corruption 5% Temperature Cool (0) Movement Core (100) Ox1 Location -6/Extension Parts ------- > --- POWER (2) -------- (None) > --- PROPULSION (3) --- (None) > --- UTILITY (5) ------ Medium Matter Pod Terrain Scanner Terrain Scan Processor > --- WEAPON (5) ------- Autogun > --- INVENTORY (5) ---- Advanced Heat Sink Weapon Cycler Improved Light Armor Plating Remote Datajack Segregator Peak State ------------ > --- POWER ------------ Improved Deuterium Engine Light Fission Core > --- PROPULSION ------- Light Treads Compact Wheel Compact Wheel > --- UTILITY ---------- Improved Cooling System IFF Parser Targeting Computer Hardened Heavy Armor Plating > --- WEAPON ----------- Gatling Laser Plasma Rifle Gauss Rifle Flak Gun Heavy Machine Gun > --- INVENTORY -------- Improved Heat Sink Weapon Cycler Improved Light Armor Plating Remote Datajack Segregator [Rating: 53] Favorites ----------- Power Ion Engine Engine Ion Engine Power Core Light Nuclear Core Propulsion Aluminum Leg Treads Light Treads Leg Aluminum Leg Wheel Wheel Hover Unit Hover Unit Flight Unit Flight Unit Utility Small Storage Unit Device Heat Sink Storage Small Storage Unit Processor Targeting Computer Protection Hardened Heavy Armor Plating Weapon Pulse Rifle Energy Gun Pulse Rifle Ballistic Gun Light Assault Rifle Special Weapon Remote Datajack Slashing Weapon Segregator Special Melee Weapon Datajack Build | -11 -10 -9 -9 -9 -9 -6 -6 ------- Run | Yrd Mat Mat Sto Rec Scr Fac Ext Slots Evolved 8 | . . 2 . . . 6 . Power 1 | . . . . . . 1 . Propulsion 1 | . . . . . . 1 . Utility 3 | . . 1 . . . 2 . Weapon 3 | . . 1 . . . 2 . Parts Attached 73 | 6 5 7 5 1 1 42 6 Power 12 | 2 . . 1 1 1 7 . Engine 8 | 2 . . 1 1 . 4 . Core 4 | . . . . . 1 3 . Reactor . | . . . . . . . . Propulsion 14 | 1 3 2 1 . . 6 1 Treads 2 | . . . . . . 2 . Leg 3 | . 1 2 . . . . . Wheel 7 | 1 . . 1 . . 4 1 Hover 1 | . 1 . . . . . . Flight 1 | . 1 . . . . . . Utility 24 | 1 1 1 2 . . 15 4 Device 15 | . 1 1 1 . . 10 2 Storage 2 | 1 . . . . . . 1 Processor 4 | . . . 1 . . 2 1 Hackware . | . . . . . . . . Protection 3 | . . . . . . 3 . Artifact . | . . . . . . . . Weapon 23 | 2 1 4 1 . . 14 1 Energy Gun 11 | 1 . 3 . . . 7 . Energy Cannon . | . . . . . . . . Ballistic Gun 9 | 1 . 1 1 . . 5 1 Ballistic Cannon . | . . . . . . . . Launcher . | . . . . . . . . Special Weapon 1 | . . . . . . 1 . Impact Weapon . | . . . . . . . . Slashing Weapon 1 | . . . . . . 1 . Piercing Weapon . | . . . . . . . . Special Melee Weapon 1 | . 1 . . . . . . Unidentified Prototypes 1 | . . . . . . 1 . Parts Lost 41 | . . 3 3 . . 21 14 Power 7 | . . . 1 . . 4 2 Propulsion 7 | . . 1 . . . 3 3 Utility 10 | . . . 1 . . 5 4 Weapon 17 | . . 2 1 . . 9 5 Highest Loss Streak 14 | . . 1 1 . . 13 14 To Critical Strikes . | . . . . . . . . Average Backups 6 | 1 4 6 7 7 8 5 5 Power . | . . 1 . . 1 . . Propulsion . | 1 2 2 . . . . . Utility 3 | . . 1 4 3 4 3 3 Weapon 1 | . . . 2 2 2 . 1 Tool/Special . | . . . . . . . . Unused Backups 5 | . . 2 . . . 3 . Power 3 | . . 2 . . . 1 . Propulsion . | . . . . . . . . Utility 1 | . . . . . . 1 . Weapon . | . . . . . . . . Tool/Special 1 | . . . . . . 1 . Average Slot Usage (%) 88 | . 94 90 98 100 99 85 61 Engine 7 | . 14 11 10 11 4 5 3 Core 3 | . . . . . 5 6 3 Treads 1 | . . . . . . 3 3 Leg 8 | . 12 13 20 11 11 1 . Wheel 8 | . 13 3 1 11 11 9 7 Device 16 | . 11 20 21 22 22 15 9 Storage 7 | . 14 11 11 11 11 3 1 Processor 1 | . . . . . . 2 5 Protection 2 | . . . . . . 5 3 Energy Gun 15 | . 14 13 22 22 22 14 7 Ballistic Gun 10 | . 10 16 10 11 11 8 14 Special Weapon 1 | . . . . . . 2 . Peak Build Rating 53 | 5 7 16 18 17 18 52 53 Average Rating 25 | 4 6 9 16 16 17 39 32 On Entrance 16 | . 5 7 16 16 17 18 51 Avg Prop Armor Cover (%) 6 | . 8 9 8 8 8 5 4 Naked Turns 10 | . . . . . . 1 9 Heaviest Build 61 | 13 14 19 23 25 25 58 61 Greatest Support 32 | 10 10 25 25 10 10 32 32 Greatest Overweight (x) 14 | 1 3 1 2 2 2 14 4 Average Overweight (x) 1 | . 1 . . 2 2 2 . Largest Inventory Capacity 8 | 8 8 8 8 8 8 8 5 Average Capacity 7 | 7 8 8 8 8 8 6 5 Most Carried 8 | 3 7 8 8 8 8 8 5 Average Carried 6 | 2 4 6 7 7 7 5 5 Final Capacity 8 | 8 8 8 8 8 8 5 5 Final Carried 8 | 3 6 8 7 8 8 5 5 Class Distribution -------------------- 18% | Commander-Tank 17% | Mutant 16% | Skirmisher 14% | Scavenger-Tank 14% | Tank 14% | Scavenger-Gunner 3% | Scavenger-Mutant Dominant Class ---------------- Mutant | -10/Materials Skirmisher | -9/Materials Skirmisher | -9/Storage Commander-Tank | -9/Recycling Commander-Tank | -9/Scraptown Scavenger-Tank | -6/Factory Scavenger-Gunner | -6/Extension Resources | -11 -10 -9 -9 -9 -9 -6 -6 ----------- Run | Yrd Mat Mat Sto Rec Scr Fac Ext Matter Collected 1447 | 158 151 223 64 . 18 733 100 Remotely . | . . . . . . . . Salvage Created 3533 | . 168 607 538 . . 1806 414 Parts 199 | . 15 37 33 . . 98 16 Haulers Intercepted . | . . . . . . . . Recyclers Shooed 6 | . 2 1 . . . 2 1 Parts Field Recycled . | . . . . . . . . Retrieved Matter . | . . . . . . . . Parts Self-Destructed . | . . . . . . . . Prevented . | . . . . . . . . Parts Restored . | . . . . . . . . Kills | -11 -10 -9 -9 -9 -9 -6 -6 ------- Run | Yrd Mat Mat Sto Rec Scr Fac Ext Combat Hostiles Destroyed 67 | . 5 17 12 . . 26 7 Guns 63 | . 5 17 12 . . 23 6 AOE 2 | . . . . . . 2 . Classes Destroyed 13 | . 3 2 2 . . 5 1 Worker 10 | . . . 3 . . 6 1 Builder 6 | . . . . . . 5 1 Recycler 2 | . . . 1 . . 1 . Operator 1 | . . . . . . 1 . Watcher 7 | . 2 . 2 . . 3 . Swarmer 14 | . 3 4 4 . . 3 . Grunt 32 | . 2 9 4 . . 13 4 Brawler 2 | . . . . . . 1 1 Duelist 3 | . . 1 1 . . 1 . Sentry 9 | . . 3 3 . . 2 1 Hunter 3 | . . . . . . 3 . Programmer 5 | . . . . . . 5 . Behemoth 1 | . . . . . . . 1 Best Kill Streak 11 | . 3 4 3 . . 11 6 Combat Bots Only 6 | . 3 4 3 . . 4 6 Max Kills in Single Turn 5 | . 2 2 2 . . 5 1 Gunslinging 1 | . 1 1 1 . . . . Exploded 1 | . . . . . . 1 . Melee . | . . . . . . . . Uniques/NPCs Destroyed . | . . . . . . . . Combat | -11 -10 -9 -9 -9 -9 -6 -6 -------- Run | Yrd Mat Mat Sto Rec Scr Fac Ext Hostile Shots Fired 641 | . 11 69 37 . . 317 207 Missed 225 | . 1 17 15 . . 112 80 Hits 416 | . 10 52 22 . . 205 127 Melee 6 | . . 2 1 . . 3 . Projectile 410 | . 10 50 21 . . 202 127 AOE 1 | . . . . . . 1 . Critical Strikes 9 | . . . . . . 4 5 Damage Taken 4867 | . 71 478 242 44 . 2606 1426 Core 1018 | . 31 55 59 18 . 518 337 Absorbed by Shields 36 | . . . . . . 36 . Ignored by Resistances 1494 | . 23 146 71 12 . 821 421 Core Remaining (%) 84 | 100 87 . . . 67 . . Volleys Fired 222 | . 24 37 31 . . 108 22 Largest 5 | . 2 3 3 . . 5 5 Hottest 241 | . 70 146 146 . . 235 241 Shots Fired 574 | . 39 102 88 . . 278 67 Gun 573 | . 39 102 88 . . 277 67 Cannon . | . . . . . . . . Launcher . | . . . . . . . . Special 1 | . . . . . . 1 . Kinetic 259 | . 17 58 28 . . 112 44 Thermal 239 | . 22 44 60 . . 90 23 Explosive . | . . . . . . . . Electromagnetic 75 | . . . . . . 75 . Robot Hit Streak 36 | . 7 17 36 . . 29 32 Robot Miss Streak 5 | . 3 2 1 . . 5 3 Penetration Max 1 | . . . . . . . 1 Secondary Targets 19 | . 1 5 4 . . 5 4 Max Gunslinging Chain 1 | . 1 1 1 . . 1 1 Shots Hit Robots 438 | . 26 80 60 . . 214 58 Core Hits 230 | . 14 32 25 . . 116 43 Critical Kills 1 | . . . . . . 1 . Critical Parts Destroyed 3 | . . . . . . 3 . Critical Strikes 16 | . 1 5 4 . . 6 . Burn 12 | . 1 5 4 . . 2 . Destroy 4 | . . . . . . 4 . Melee Attacks 3 | . 3 . . . . . . Impact . | . . . . . . . . Slashing . | . . . . . . . . Piercing . | . . . . . . . . Sneak Attacks 2 | . 2 . . . . . . Combat Hostiles . | . . . . . . . . Follow-up Attacks . | . . . . . . . . Damage Inflicted 8070 | . 255 882 924 20 . 4515 1474 Guns 7118 | . 255 880 910 . . 3606 1467 Cannons . | . . . . . . . . Explosions 893 | . . . . . . 893 . Melee . | . . . . . . . . Ramming 59 | . . 2 14 20 . 16 7 Kinetic 2844 | . 93 363 128 . . 1400 860 Thermal 4203 | . 162 517 782 . . 2135 607 Explosive . | . . . . . . . . Electromagnetic 964 | . . . . . . 964 . Impact . | . . . . . . . . Slashing . | . . . . . . . . Piercing . | . . . . . . . . Highest Corruption 5 | . . . . . . 5 5 Average Corruption 3 | . . . . . . 2 5 Corruption Purged . | . . . . . . . . Corruption Blocked . | . . . . . . . . Effects 39 | . . . . . . 27 12 Message Errors 11 | . . . . . . 10 1 Matter Fused 7 | . . . . . . 5 2 Heat Flow Errors 3 | . . . . . . 2 1 Energy Discharges 3 | . . . . . . 1 2 Parts Rejected 1 | . . . . . . 1 . Data Loss (minor) 5 | . . . . . . 2 3 Data Loss (major) 3 | . . . . . . 3 . Misfires 4 | . . . . . . 3 1 Weapon Failures 2 | . . . . . . . 2 Overload Shots . | . . . . . . . . Overflow Damage 49 | . . . . . . 49 . Projectiles . | . . . . . . . . Explosions 49 | . . . . . . 49 . Melee . | . . . . . . . . Knockbacks . | . . . . . . . . Impact . | . . . . . . . . Kinetic . | . . . . . . . . Secondary . | . . . . . . . . Self-Inflicted Damage 142 | . . . . 10 . 130 2 Shots 3 | . . . . . . 3 . Rammed 9 | . . . . 1 . 4 4 Targets Rammed 14 | . 1 1 3 1 . 4 4 Kicked 5 | . 1 1 3 . . . . Crushed . | . . . . . . . . Highest Temperature 744 | . 80 159 251 . . 744 471 Average Temperature 121 | . 24 39 88 . . 153 236 Received Heat Transfer 1335 | . 24 204 111 24 . 483 489 Effects 31 | . . . . . . 23 8 Shutdowns 10 | . . . . . . 7 3 Energy Bleed 2 | . . . . . . 2 . Interference 8 | . . . . . . 6 2 Matter Decay 1 | . . . . . . 1 . Short Circuit 2 | . . . . . . 2 . Damage (minor) 3 | . . . . . . 3 . Damage (major) 4 | . . . . . . 1 3 Damage (core) 1 | . . . . . . 1 . Siege Activations . | . . . . . . . . Martial Activations . | . . . . . . . . Shielding Activations . | . . . . . . . . Robots Disrupted . | . . . . . . . . Combat Hostiles . | . . . . . . . . Robots Corrupted 1 | . . . . . . 1 . Combat Hostiles 1 | . . . . . . 1 . Parts Fried 3 | . . . 1 . . 2 . Impact Corruptions . | . . . . . . . . Robots Melted 1 | . . . . . . . 1 Combat Hostiles 1 | . . . . . . . 1 Parts Melted 18 | . 2 4 4 . . 5 3 Heat Transferred 8882 | . 555 1739 1998 . . 3265 1325 Parts Sabotaged 2 | . . . . . . 2 . Parts Stolen . | . . . . . . . . Parts Stripped . | . . . . . . . . Power Chain Reactions 4 | . . . . . . 4 . Alert | -11 -10 -9 -9 -9 -9 -6 -6 ------- Run | Yrd Mat Mat Sto Rec Scr Fac Ext Maximum Alert Level 1 | . . . . . . 1 . Low Security (%) 99 | 100 100 100 100 100 . 99 100 Level 1 . | . . . . . . . . Level 2 . | . . . . . . . . Level 3 . | . . . . . . . . Level 4 . | . . . . . . . . Level 5 . | . . . . . . . . High Security . | . . . . . . . . Max Security . | . . . . . . . . Peak Influence 196 | . 70 190 156 25 . 196 70 Initial 61 | . . 7 61 25 . . 22 Average 55 | . 13 113 85 3 . 55 7 Influence Increases 2199 | . 147 471 438 4 . 949 190 Destroy 0b10 Robot/C 1380 | . 100 340 280 . . 520 140 Destroy 0b10 Robot/NC 130 | . 10 . 30 . . 80 10 Destroy Leader 334 | . 34 80 74 . . 136 10 Allied During Kill 15 | . . . 14 . . 1 . Successful Hack 74 | . 3 20 10 4 . 37 . Disable Machine 18 | . . . . . . 18 . Destroy Structure 23 | . . 1 . . . 22 . Lose Combat Pursuer 225 | . . 30 30 . . 135 30 Influence Decreases 2199 | . 124 323 530 83 . 896 243 Entered New Map 211 | . . 16 110 54 . . 31 Time Decay 1612 | . 124 277 390 29 . 690 102 Lost Part 356 | . . 30 30 . . 186 110 Lost Ally 20 | . . . . . . 20 . Squads Dispatched 22 | . 2 3 5 . . 11 1 Investigation 6 | . 2 1 . . . 3 . Extermination 3 | . . . . . . 3 . Reinforcement 9 | . . 2 2 . . 4 1 Assault . | . . . . . . . . Garrison 4 | . . . 3 . . 1 . Intercept . | . . . . . . . . Searches Triggered . | . . . . . . . . Construction Impeded 2 | . . . . . . 1 1 Haulers Reinforced . | . . . . . . . . Active Scanning Responses . | . . . . . . . . Cargo Convoy Interrupts 1 | . . . . . . 1 . Stealth | -11 -10 -9 -9 -9 -9 -6 -6 --------- Run | Yrd Mat Mat Sto Rec Scr Fac Ext Distress Signals 7 | . . 1 2 . . 4 . Communications Jammed . | . . . . . . . . Distress Signals . | . . . . . . . . Times Spotted 113 | . 11 19 19 . . 50 14 Peak Tracking Total 6 | . 3 5 4 . . 6 6 Tactical Retreats 13 | . . 2 2 . . 7 2 Traps | -11 -10 -9 -9 -9 -9 -6 -6 ------- Run | Yrd Mat Mat Sto Rec Scr Fac Ext Traps Triggered 7 | . 2 . . . . 3 2 Indirectly . | . . . . . . . . Trap Hack Attempts . | . . . . . . . . Triggered . | . . . . . . . . Disarmed 4 | . . . 4 . . . . Reprogrammed . | . . . . . . . . Reused . | . . . . . . . . Traps Extracted . | . . . . . . . . Installed . | . . . . . . . . Triggered . | . . . . . . . . Machines | -11 -10 -9 -9 -9 -9 -6 -6 ---------- Run | Yrd Mat Mat Sto Rec Scr Fac Ext Machines Disabled 2 | . . . . . . 2 . Max in Single Turn 1 | . . . . . . 1 . Machines Repaired . | . . . . . . . . Machines Dismantled . | . . . . . . . . Machines Sabotaged . | . . . . . . . . Overloaded Fab Kills . | . . . . . . . . Hacking | -11 -10 -9 -9 -9 -9 -6 -6 --------- Run | Yrd Mat Mat Sto Rec Scr Fac Ext Machines Accessed 24 | . 2 2 5 5 1 9 . Terminals 14 | . 1 . 5 2 . 6 . Fabricators . | . . . . . . . . Repair Stations . | . . . . . . . . Recycling Units 3 | . 1 . . 1 . 1 . Scanalyzers 3 | . . 2 . . . 1 . Garrison Access 1 | . . . . . . 1 . Total Hacks 91 | . 9 11 10 34 9 18 . Successful 68 | . 5 10 6 29 9 9 . Failed 23 | . 4 1 4 5 . 9 . Catastrophic 4 | . . . 1 . . 3 . Database Lockouts . | . . . . . . . . Manual . | . . . . . . . . Terminals 30 | . 3 . 10 5 . 12 . Fabricators . | . . . . . . . . Repair Stations . | . . . . . . . . Recycling Units 12 | . 6 . . 4 . 2 . Scanalyzers 14 | . . 11 . . . 3 . Garrison Access 1 | . . . . . . 1 . Terminal Hacks 48 | . 1 . 6 27 9 5 . Record 34 | . . . . 25 9 . . Prototype ID Bank 1 | . . . . 1 . . . Open Door 2 | . . . 1 . . 1 . Open DSF 1 | . . . . . . 1 . Emergency Access Points 1 | . 1 . . . . . . Alert Level 1 | . . . 1 . . . . Locate Traps 1 | . . . . . . 1 . Disarm Traps 1 | . . . 1 . . . . Maintenance Status 2 | . . . 1 . . 1 . Zone Layout 3 | . . . 2 . . 1 . Release Object 1 | . . . . 1 . . . Fabricator Hacks . | . . . . . . . . Repair Station Hacks . | . . . . . . . . Recycling Unit Hacks 8 | . 4 . . 2 . 2 . Recycle Component 2 | . 2 . . . . . . Process 1 | . 1 . . . . . . Report Inventory 2 | . . . . 1 . 1 . Retrieve Components 3 | . 1 . . 1 . 1 . Scanalyzer 11 | . . 10 . . . 1 . Insert Component 3 | . . 3 . . . . . Analyze 2 | . . 2 . . . . . Retrieve Study 6 | . . 5 . . . 1 . Garrison Access Hacks 1 | . . . . . . 1 . Unlock Access 1 | . . . . . . 1 . Unauthorized Hacks . | . . . . . . . . Terminals . | . . . . . . . . Fabricators . | . . . . . . . . Repair Stations . | . . . . . . . . Recycling Units . | . . . . . . . . Scanalyzers . | . . . . . . . . Garrison Access . | . . . . . . . . Data Cores Recovered 1 | . . . . . . 1 . Used . | . . . . . . . . Hacking Detections 16 | . 2 2 3 2 . 7 . Full Trace Events 5 | . . 1 . 1 . 3 . Feedback Events . | . . . . . . . . Feedback Blocked . | . . . . . . . . Robot Schematics Acquired . | . . . . . . . . Robots Built . | . . . . . . . . Authchips . | . . . . . . . . Time . | . . . . . . . . Total Robot Build Rating . | . . . . . . . . Part Schematics Acquired 2 | . . 2 . . . . . Parts Built . | . . . . . . . . Authchips . | . . . . . . . . Time . | . . . . . . . . Total Part Build Rating . | . . . . . . . . Part Studies Acquired 6 | . . 5 . . . 1 . Parts Repaired . | . . . . . . . . Time . | . . . . . . . . Parts Recycled 2 | . 2 . . . . . . Recycled Matter 40 | . 40 . . . . . . Retrieved Matter . | . . . . . . . . Retrieved Components 13 | . . . . 3 . 10 . Parts Scanalyzed 2 | . . 2 . . . . . Part Schematics Acquired 2 | . . 2 . . . . . Parts Damaged . | . . . . . . . . Bothacking | -11 -10 -9 -9 -9 -9 -6 -6 ------------ Run | Yrd Mat Mat Sto Rec Scr Fac Ext Used RIF Installer . | . . . . . . . . Robots Hacked 2 | . 1 . . . . 1 . Non-combat 2 | . 1 . . . . 1 . Combat . | . . . . . . . . Robot Hacks Applied 3 | . 2 . . . . 1 . parse_system 1 | . 1 . . . . . . find_recycling 1 | . 1 . . . . . . check_alert 1 | . . . . . . 1 . Relay Couplers Released . | . . . . . . . . Fabnet Peak Effective % . | . . . . . . . . Robots Rewired . | . . . . . . . . Allies Hacked . | . . . . . . . . Hacks Repelled . | . . . . . . . . Allies | -11 -10 -9 -9 -9 -9 -6 -6 -------- Run | Yrd Mat Mat Sto Rec Scr Fac Ext Total Allies 10 | . . . 10 . . . . Largest Group 10 | . . . 10 6 6 6 . Highest-Rated Group 88 | . . . 88 56 56 56 . Highest-Rated Ally 16 | . . . 16 16 16 16 . Total Orders . | . . . . . . . . Ally Attacks 30 | . . . 14 . . 16 . Total Damage 289 | . . . 147 . . 142 . Kills 2 | . . . 2 . . . . Allies Corrupted . | . . . . . . . . Allies Melted . | . . . . . . . . Intel | -11 -10 -9 -9 -9 -9 -6 -6 ------- Run | Yrd Mat Mat Sto Rec Scr Fac Ext Active Infowar (turns) 1970 | . 385 585 381 . . 223 396 Optics 21 | . . . . . . 21 . Sensors 1351 | . 385 585 381 . . . . IFF 476 | . . . . . . 202 274 Terrain 122 | . . . . . . . 122 Robot Analysis Total . | . . . . . . . . Derelict Logs Recovered . | . . . . . . . . Drone Launches 2 | . . . . . . 2 . Drone Recoveries . | . . . . . . . . Exploration | -11 -10 -9 -9 -9 -9 -6 -6 ------------- Run | Yrd Mat Mat Sto Rec Scr Fac Ext Turns Passed 5012 | 61 478 586 799 244 318 2048 478 Spaces Moved 3045 | 48 271 306 513 189 273 1110 335 Core 171 | 6 . . . . . 16 149 Treads 1 | . . . . . . 1 . Legs 726 | . 99 205 422 . . . . Wheels 2143 | 42 168 101 91 189 273 1093 186 Hover 2 | . 2 . . . . . . Flight 2 | . 2 . . . . . . Fastest Speed 50 | 50 95 95 95 110 110 50 50 Average Speed 120 | 87 131 132 111 110 110 128 102 Slowest Speed 750 | 100 285 175 112 110 110 750 250 Overloaded Moves . | . . . . . . . . Propulsion Burnouts . | . . . . . . . . Robots Hopped . | . . . . . . . . Potential Cave-ins . | . . . . . . . . Cave-ins Triggered . | . . . . . . . . Exploration Rate (%) 32 | 4 48 21 79 29 28 23 31 Regions Visited 7 Branch Regions 4 Pre-discovered Areas . | . . . . . . . . Known Exits Taken . | . . . . . . . . Unknown Exits Taken 7 | 1 1 1 1 1 1 1 . Scrap Searched 1 | . . . . . 1 . . Spaces Dug . | . . . . . . . . Terrain Destroyed 27 | . . . . . . 27 . Melee . | . . . . . . . . Projectile . | . . . . . . . . AOE 27 | . . . . . . 27 . Terrain Rammed . | . . . . . . . . Walls Destroyed . | . . . . . . . . Machines Disabled . | . . . . . . . . Actions | -11 -10 -9 -9 -9 -9 -6 -6 --------- Run | Yrd Mat Mat Sto Rec Scr Fac Ext Total 3982 | 63 354 416 678 225 291 1531 424 Wait 500 | 7 35 42 122 29 15 231 19 Move 3038 | 47 270 305 512 188 272 1109 335 Hop . | . . . . . . . . Pick Up 38 | 3 6 11 3 2 1 11 1 Fast Attach 49 | 5 1 2 1 . 1 30 9 Attach 29 | . 6 7 4 . . 12 . Detach 14 | . 5 2 1 . . 6 . Swap 13 | 1 3 3 . 1 . 5 . Drop 29 | . . 6 1 1 2 15 4 Fire 222 | . 24 37 31 . . 108 22 Melee 3 | . 3 . . . . . . Ram 9 | . . . . 1 . 4 4 Kick 5 | . 1 1 3 . . . . Crush . | . . . . . . . . Escape Stasis 30 | . . . . . . . 30 Rewire 3 | . . . . 3 . . . Trap . | . . . . . . . . Miscellaneous . | . . . . . . . . Route ------- -11/Scrapyard -10/Materials (discovered 2 exits: *Mat / [*Min]) -9/Materials -9/Storage (discovered 2 exits: [*Mat] / *Rec) -9/Recycling -9/Scraptown -6/Factory (discovered 4 exits: [*Fac] / [*Low] / [*Ext] / Gar) -6/Extension History --------- Turn | Location | Event 15 | -11/Scrapyard | Discovered new exit (range 16) 62 | -11/Scrapyard | Entered Materials 239 | -10/Materials | Discovered new exit (range 12) 308 | -10/Materials | Build established: Mutant 529 | -10/Materials | Discovered new exit (range 4) 540 | -10/Materials | Entered another Materials area 540 | -9/Materials | Evolved 2 slots: Utility x1, Weapon x1 908 | -9/Materials | Build established: Skirmisher 1068 | -9/Materials | Discovered new exit (range 5) 1126 | -9/Materials | Entered Storage 1191 | -9/Storage | Garrison activated, responded to threat 1496 | -9/Storage | Discovered new exit (range 15) 1555 | -9/Storage | Met 01-MTF 1807 | -9/Storage | Assisted by bots powering up and referring to "LRC-V3" 1916 | -9/Storage | Discovered new exit (range 4) 1925 | -9/Storage | Entered Recycling 1925 | -9/Recycling | Accompanied by 7 allies (01-MTF) 1926 | -9/Recycling | Met a Zionite searching for Scraptown 2104 | -9/Recycling | Build established: Commander-Tank 2115 | -9/Recycling | Scanned before Scraplab entrance 2162 | -9/Recycling | Discovered new exit (range 3) 2169 | -9/Recycling | Entered Scraptown 2169 | -9/Scraptown | Accompanied by 6 allies 2459 | -9/Scraptown | Discovered new exit (range 11) 2487 | -9/Scraptown | Entered Factory 2487 | -6/Factory | Accompanied by 6 allies 2487 | -6/Factory | Evolved 6 slots: Power x1, Propulsion x1, Utility x2, Weapon x2 2611 | -6/Factory | Lost 4 allies 2744 | -6/Factory | Lost 4 allies 3113 | -6/Factory | Build established: Tank 3196 | -6/Factory | Discovered new exit (range 13) 3285 | -6/Factory | Discovered new exit (range 15) 3384 | -6/Factory | Lost 4 parts (1n1u2w) 3546 | -6/Factory | Identified exit to Garrison 3576 | -6/Factory | Garrison activated, responded to threat 3582 | -6/Factory | Cargo convoy interrupted 3690 | -6/Factory | Core integrity fell below 50% 3738 | -6/Factory | Lost 13 parts (3p2n4u4w) 3969 | -6/Factory | Build established: Scavenger-Tank 4409 | -6/Factory | Build established: Scavenger-Gunner 4530 | -6/Factory | Discovered new exit (range 6) 4535 | -6/Factory | Entered Extension 4621 | -6/Extension | Spotted B-75 Beast 4703 | -6/Extension | Destroyed B-75 Beast 4816 | -6/Extension | Core integrity fell below 20% 4822 | -6/Extension | Spotted B-75 Beast 4870 | -6/Extension | Lost 14 parts (2p3n4u5w) 5013 | -6/Extension | Destroyed by S-27 Virus with Autogun Last Messages --------------- 04958_ Field strength at 76. 04959_ Field strength at 70. 04960_ Field strength at 64. 04961_ U-05 Engineer exits Transfer Station. 04961_ Field strength at 58. 04962_ Field strength at 52. 04963_ Field strength at 46. 04964_ Field strength at 40. 04964_ R-10 Processor enters Transfer Station. 04965_ Field strength at 34. 04966_ Field strength at 28. 04967_ Field strength at 22. 04968_ Field strength at 16. 04969_ Field strength at 10. 04970_ Field strength at 4. 04971_ Stasis field depleted. 04985_ System corrupted: Heat flow error (+118). Use the buttons at the bottom right of the parts list, or press c/e/w/q, to visualize various stats related to parts and inventory items. [Achievement: 5k Club] Map ----- +----------------------------------------------------+ | | | | | | | | | | | | | | | | | | | | | | | | | | | | | ?????????????????????????????????????????????????? | | ???????#???#??????????##????#????????????????????? | | ????#??#????????????###Y#######??????????????????? | | ????????#????#??#??##! !s[s#??????????????????? | | ????????????????????# = !s[ ##?????????????????? | | ????????############# !![ +??????????????????? | | ?????????# # ! s #??????????????????? | | #?######## # "" #??????????????????? | | ??# ]!! #! ! T" #??????????????????? | | ??# ]!! # "" ???????????????????? | | ??# ]!! #?? ????#????????????????? | | ??## # ! #####@########## ????????????? | | ?#?# # ?????????? | | ???# # ?????????? | | ?#?# # ?????????? | | ???# # ??????????? | | ##?# # ??????????? | | ???# ######################### ???????????? | | ?### #?#???#?????#?#????????????#??????????? | | ??## #######?#????????????#??????????????????????? | | #### #?#??#?####?#???##??????????????????????????? | | #### #?#?##???#???#??#???????????????????????????? | | ?### #??##?####??#????????????#??????????????????? | | ?#?# ##???###???##?#???#?#??#????????????????????? | | ?### #?####?#####?#??????????????????????????????? | | ??## ##?#?#?##?##????????????????????????????????? | | ??## #?#??#####?#?????????#??#???????????????????? | | ?#?# #????##???#???#??????#?#????????????????????? | | #### ##?#??######?#??????????????????????????????? | | #??# ###?#?##?#?#?#??###??????????#??????????????? | | #??# #????#?###?#?#????##????????????????????????? | | #??# ##??####??#?##????????#?????????????????????? | | #?## #?#?###?#?#?#??????#??#?????????##??????????? | | #?## #?####?#?#???????##??????#??????????????????? | | #### #####?#?##?#??#?????????#?????#??#??????????? | | "" "" ##?#????#?#???????#?##??????????????????? | +----------------------------------------------------+ Best States ------------- Heat Dissipation 64 Energy Generation 38 Energy Capacity 350 Matter Stores 300 Matter Capacity 400 Sight Range 22 Robot Scan Range 14 Terrain Scan Range 14 Terrain Scan Density 85 Armor Coverage 750 Resistance: KI 40 Resistance: TH 40 Resistance: EX 20 Resistance: EM 20 Resistance: I 20 Resistance: S 20 Resistance: P 20 Weapon Cycling 15 Evasion (%) 55 Targeting Accuracy 5 Recoil Reduction 1 Salvage Targeting 1 Offensive Hacking 10 Item Schematics ----------------- Datajack | -9/Materials | Scanalyzed Sensor Array | -9/Materials | Scanalyzed Robot Schematics ------------------ None Fabricated ------------ Nothing Repaired ---------- Nothing Studied --------- Datajack | -9/Materials | Hacked Lgt. Assault Rifle | -9/Materials | Hacked Aluminum Leg | -9/Materials | Hacked Ion Engine | -9/Materials | Hacked Particle Gun | -9/Materials | Hacked Pulse Rifle | -6/Factory | Hacked Alien Tech Used ----------------- None Achievements -------------- 5k Club Civilization 2243 Frienemies Hey, That's Mine! Jackpot Junior Dev Librarian Please Form A Line Serviceable Loadout Spot Them First The More The Merrier Universal Adapter You May Approach The Wall \\IAMDERELICT Challenges ------------ None Game ------ Seed PartitionAnalysisDerivative Manual? 0 Play Time 01:20:29 Cumulative 8.7 hours Start 2026.08.10 @ 17:14:59 End 2026.08.10 @ 23:26:08 Sessions 3 Manual Loads 0 Difficulty Adventurer Special Mode None Game No. 24 Rogue 17 Adventurer 7 Explorer 0 Win Type - Total 0 Types 0/0/0/0/0/0/0/0/0/0 Lore% 4 Gallery% 10 Achievement% 10 Wizard Run 0 Options --------- Layout 1 ASCII 0 Keyboard 0 Movement Numpad Keybinds 0 Fullscreen 2 Font 32/Smallcaps Map View 77x35 Zoom Use 0% Tactical HUD 1 Map Filters NONE Filters NONE Steam 1 RUN: c187842b-f3bc-4615-bb7c-64855f53564b